[Event "Titled Tuesday Blitz November 01 Late 2022"]
[White "Santos Flores, Alberto"]
[Black "Zhigalko, Sergei"]
[WhiteFideId "3601234"]
[BlackFideId "13502956"]
[WhiteElo "2235"]
[BlackElo "2662"]
[Result "1-0"]
[Round "01"]
[TimeControl "180+1"]
[Date "2022.11.02"]
[WhiteClock "0:00:08"]
[BlackClock "0:00:08"]

1. e4 {[%clk 0:02:52]}  c5 {[%clk 0:02:59]} 2. Nf3 {[%clk 0:02:52]}  Nc6 {[%clk 0:02:59]} 3. Nc3 {[%clk 0:02:51]}  Nf6 {[%clk 0:02:59]} 4. d4 {[%clk 0:02:51]}  cxd4 {[%clk 0:03:00]} 5. Nxd4 {[%clk 0:02:52]}  e5 {[%clk 0:03:00]} 6. Ndb5 {[%clk 0:02:52]}  d6 {[%clk 0:03:01]} 7. Bg5 {[%clk 0:02:53]}  a6 {[%clk 0:03:01]} 8. Na3 {[%clk 0:02:54]}  b5 {[%clk 0:03:02]} 9. Bxf6 {[%clk 0:02:54]}  gxf6 {[%clk 0:03:02]} 10. Nd5 {[%clk 0:02:55]}  Bg7 {[%clk 0:03:03]} 11. c3 {[%clk 0:02:55]}  f5 {[%clk 0:03:03]} 12. exf5 {[%clk 0:02:56]}  Bxf5 {[%clk 0:03:03]} 13. Nc2 {[%clk 0:02:56]}  Be6 {[%clk 0:03:04]} 14. Nce3 {[%clk 0:02:57]}  Ne7 {[%clk 0:03:04]} 15. g3 {[%clk 0:02:57]}  Nxd5 {[%clk 0:03:04]} 16. Nxd5 {[%clk 0:02:57]}  O-O {[%clk 0:03:05]} 17. Bg2 {[%clk 0:02:57]}  a5 {[%clk 0:03:05]} 18. O-O {[%clk 0:02:55]}  Rb8 {[%clk 0:03:06]} 19. f4 {[%clk 0:02:51]}  f5 {[%clk 0:03:04]} 20. Kh1 {[%clk 0:02:42]}  Kh8 {[%clk 0:03:00]} 21. Qd2 {[%clk 0:02:35]}  e4 {[%clk 0:02:50]} 22. Rad1 {[%clk 0:02:31]}  Qd7 {[%clk 0:02:42]} 23. g4 {[%clk 0:02:19]}  b4 {[%clk 0:02:33]} 24. c4 {[%clk 0:02:01]}  b3 {[%clk 0:02:31]} 25. a3 {[%clk 0:01:35]}  Bxd5 {[%clk 0:02:31]} 26. cxd5 {[%clk 0:01:33]}  a4 {[%clk 0:02:24]} 27. Rfe1 {[%clk 0:01:23]}  Rbc8 {[%clk 0:01:59]} 28. Rc1 {[%clk 0:01:21]}  Rxc1 {[%clk 0:01:44]} 29. Rxc1 {[%clk 0:01:21]}  e3 {[%clk 0:01:37]} 30. Qxe3 {[%clk 0:00:59]}  Bxb2 {[%clk 0:01:35]} 31. Rb1 {[%clk 0:01:00]}  Bg7 {[%clk 0:01:25]} 32. g5 {[%clk 0:00:55]}  Qb5 {[%clk 0:01:14]} 33. h4 {[%clk 0:00:42]}  Re8 {[%clk 0:01:13]} 34. Qh3 {[%clk 0:00:37]}  Qc5 {[%clk 0:00:32]} 35. Qxf5 {[%clk 0:00:35]}  Qxa3 {[%clk 0:00:30]} 36. Be4 {[%clk 0:00:33]}  Kg8 {[%clk 0:00:14]} 37. Qxh7+ {[%clk 0:00:29]}  Kf8 {[%clk 0:00:14]} 38. Qf5+ {[%clk 0:00:21]}  Ke7 {[%clk 0:00:15]} 39. g6 {[%clk 0:00:18]}  Kd8 {[%clk 0:00:10]} 40. h5 {[%clk 0:00:16]}  Qb4 {[%clk 0:00:05]} 41. Bf3 {[%clk 0:00:17]}  b2 {[%clk 0:00:03]} 42. Bg4 {[%clk 0:00:17]}  Qb7 {[%clk 0:00:02]} 43. h6 {[%clk 0:00:13]}  Be5 {[%clk 0:00:03]} 44. fxe5 {[%clk 0:00:13]}  Qxd5+ {[%clk 0:00:03]} 45. Bf3 {[%clk 0:00:13]}  Qxe5 {[%clk 0:00:03]} 46. Qxe5 {[%clk 0:00:13]}  Rxe5 {[%clk 0:00:02]} 47. h7 {[%clk 0:00:13]}  Re8 {[%clk 0:00:02]} 48. g7 {[%clk 0:00:13]}  a3 {[%clk 0:00:02]} 49. Bd5 {[%clk 0:00:12]}  Kc7 {[%clk 0:00:01]} 50. g8=Q {[%clk 0:00:12]}  a2 {[%clk 0:00:02]} 51. Bxa2 {[%clk 0:00:12]}  Re1+ {[%clk 0:00:02]} 52. Rxe1 {[%clk 0:00:12]}  b1=Q {[%clk 0:00:03]} 53. Rxb1 {[%clk 0:00:12]}  d5 {[%clk 0:00:03]} 54. Rc1+ {[%clk 0:00:10]}  Kd6 {[%clk 0:00:03]} 55. Qg6+ {[%clk 0:00:11]}  Ke5 {[%clk 0:00:04]} 56. h8=Q+ {[%clk 0:00:11]}  Kf4 {[%clk 0:00:05]} 57. Qf8+ {[%clk 0:00:11]}  Ke3 {[%clk 0:00:05]} 58. Re1+ {[%clk 0:00:09]}  Kd2 {[%clk 0:00:06]} 59. Qf2+ {[%clk 0:00:08]}  Kc3 {[%clk 0:00:07]} 60. Qgc2+ {[%clk 0:00:08]}  Kb4 {[%clk 0:00:07]} 61. Rb1+ {[%clk 0:00:08]}  Ka5 {[%clk 0:00:08]} 62. Qa7# {[%clk 0:00:08]} 1-0


[Site "https://www.chess.com"]

[Event "Titled Tuesday Blitz November 01 Late 2022"]
[White "Silva, Kaua Marques"]
[Black "Rorrer, Grayson"]
[WhiteFideId "22701168"]
[BlackFideId "30944996"]
[WhiteElo "2083"]
[BlackElo "2130"]
[Result "0-1"]
[Round "01"]
[TimeControl "180+1"]
[Date "2022.11.02"]
[WhiteClock "0:01:07"]
[BlackClock "0:00:23"]

1. Nf3 {[%clk 0:03:00]}  Nf6 {[%clk 0:02:57]} 2. g3 {[%clk 0:03:01]}  d5 {[%clk 0:02:56]} 3. Bg2 {[%clk 0:03:02]}  c6 {[%clk 0:02:56]} 4. O-O {[%clk 0:03:03]}  Bg4 {[%clk 0:02:55]} 5. Ne5 {[%clk 0:03:03]}  Bf5 {[%clk 0:02:53]} 6. c4 {[%clk 0:03:02]}  e6 {[%clk 0:02:47]} 7. d3 {[%clk 0:03:00]}  Nbd7 {[%clk 0:02:45]} 8. Nxd7 {[%clk 0:03:00]}  Nxd7 {[%clk 0:02:42]} 9. Nc3 {[%clk 0:03:01]}  Bg6 {[%clk 0:02:40]} 10. e4 {[%clk 0:02:54]}  dxc4 {[%clk 0:01:57]} 11. dxc4 {[%clk 0:02:51]}  Ne5 {[%clk 0:01:54]} 12. b3 {[%clk 0:02:45]}  Bb4 {[%clk 0:01:49]} 13. Ne2 {[%clk 0:02:42]}  Qxd1 {[%clk 0:01:45]} 14. Rxd1 {[%clk 0:02:43]}  Bh5 {[%clk 0:01:46]} 15. Kf1 {[%clk 0:02:40]}  Nf3 {[%clk 0:01:39]} 16. h3 {[%clk 0:02:19]}  Nh2+ {[%clk 0:01:38]} 17. Kg1 {[%clk 0:02:19]}  Bxe2 {[%clk 0:01:38]} 18. Bd2 {[%clk 0:02:15]}  Bxd1 {[%clk 0:01:32]} 19. Bxb4 {[%clk 0:02:15]}  Nf3+ {[%clk 0:01:32]} 20. Kf1 {[%clk 0:02:13]}  O-O-O {[%clk 0:01:31]} 21. Bc3 {[%clk 0:01:47]}  e5 {[%clk 0:01:25]} 22. Bb4 {[%clk 0:01:26]}  Rd3 {[%clk 0:01:17]} 23. Rxd1 {[%clk 0:01:17]}  Rxd1+ {[%clk 0:01:15]} 24. Ke2 {[%clk 0:01:18]}  Ra1 {[%clk 0:01:13]} 25. Bxf3 {[%clk 0:01:19]}  Rxa2+ {[%clk 0:01:13]} 26. Kd3 {[%clk 0:01:20]}  Rd8+ {[%clk 0:01:13]} 27. Ke3 {[%clk 0:01:20]}  b6 {[%clk 0:01:07]} 28. Be7 {[%clk 0:01:18]}  Rdd2 {[%clk 0:01:02]} 29. Bg4+ {[%clk 0:01:19]}  Kb7 {[%clk 0:01:02]} 30. f4 {[%clk 0:01:18]}  Rdb2 {[%clk 0:00:59]} 31. fxe5 {[%clk 0:01:13]}  Rxb3+ {[%clk 0:01:00]} 32. Kf4 {[%clk 0:01:14]}  Rf2+ {[%clk 0:01:00]} 33. Kg5 {[%clk 0:01:14]}  Rxg3 {[%clk 0:01:00]} 34. Bf8 {[%clk 0:01:11]}  Rc3 {[%clk 0:00:27]} 35. Bxg7 {[%clk 0:01:06]}  Rxc4 {[%clk 0:00:27]} 36. Bf5 {[%clk 0:01:06]}  a5 {[%clk 0:00:24]} 37. Kf6 {[%clk 0:01:07]}  Rxe4 {[%clk 0:00:23]} 0-1


[Site "https://www.chess.com"]

[Event "Titled Tuesday Blitz November 01 Late 2022"]
[White "Sokolovsky, Yahli"]
[Black "Kekic, Armin"]
[WhiteFideId "2820242"]
[BlackFideId "14401274"]
[WhiteElo "2316"]
[BlackElo "2132"]
[Result "1/2-1/2"]
[Round "01"]
[TimeControl "180+1"]
[Date "2022.11.02"]
[WhiteClock "0:01:01"]
[BlackClock "0:00:28"]

1. b3 {[%clk 0:03:00]}  d5 {[%clk 0:02:56]} 2. e3 {[%clk 0:03:01]}  Bf5 {[%clk 0:02:55]} 3. Bb2 {[%clk 0:03:01]}  e6 {[%clk 0:02:56]} 4. Nf3 {[%clk 0:03:02]}  h6 {[%clk 0:02:56]} 5. d4 {[%clk 0:03:02]}  Nf6 {[%clk 0:02:56]} 6. Bd3 {[%clk 0:03:02]}  Bxd3 {[%clk 0:02:55]} 7. Qxd3 {[%clk 0:03:03]}  Nbd7 {[%clk 0:02:54]} 8. O-O {[%clk 0:03:03]}  Be7 {[%clk 0:02:54]} 9. c4 {[%clk 0:02:58]}  c5 {[%clk 0:02:53]} 10. Nc3 {[%clk 0:02:57]}  cxd4 {[%clk 0:02:51]} 11. exd4 {[%clk 0:02:57]}  dxc4 {[%clk 0:02:51]} 12. bxc4 {[%clk 0:02:57]}  O-O {[%clk 0:02:51]} 13. Rfd1 {[%clk 0:02:56]}  Rc8 {[%clk 0:02:51]} 14. Rac1 {[%clk 0:02:56]}  Qa5 {[%clk 0:02:50]} 15. d5 {[%clk 0:02:44]}  exd5 {[%clk 0:02:30]} 16. Nxd5 {[%clk 0:02:45]}  Nxd5 {[%clk 0:02:28]} 17. Qxd5 {[%clk 0:02:46]}  Qxd5 {[%clk 0:02:27]} 18. cxd5 {[%clk 0:02:47]}  Bf6 {[%clk 0:02:23]} 19. Bxf6 {[%clk 0:02:42]}  Nxf6 {[%clk 0:02:24]} 20. Rxc8 {[%clk 0:02:11]}  Rxc8 {[%clk 0:02:23]} 21. h3 {[%clk 0:02:09]}  Rd8 {[%clk 0:01:49]} 22. d6 {[%clk 0:02:09]}  Ne4 {[%clk 0:01:46]} 23. d7 {[%clk 0:02:09]}  Nc5 {[%clk 0:01:46]} 24. Rd5 {[%clk 0:02:09]}  b6 {[%clk 0:01:42]} 25. Ne5 {[%clk 0:02:08]}  f6 {[%clk 0:01:41]} 26. Nc6 {[%clk 0:02:07]}  Rxd7 {[%clk 0:01:39]} 27. Rxd7 {[%clk 0:02:07]}  Nxd7 {[%clk 0:01:39]} 28. Nxa7 {[%clk 0:02:08]}  Kf7 {[%clk 0:01:39]} 29. Kf1 {[%clk 0:02:08]}  Ke6 {[%clk 0:01:40]} 30. Nb5 {[%clk 0:02:04]}  Kd5 {[%clk 0:01:38]} 31. Ke2 {[%clk 0:02:01]}  Kc4 {[%clk 0:01:24]} 32. Nd6+ {[%clk 0:02:01]}  Kc3 {[%clk 0:01:24]} 33. Nf5 {[%clk 0:02:01]}  Kb2 {[%clk 0:01:21]} 34. Kd3 {[%clk 0:01:52]}  b5 {[%clk 0:01:11]} 35. Nd6 {[%clk 0:01:49]}  b4 {[%clk 0:00:50]} 36. Kc4 {[%clk 0:01:44]}  Kxa2 {[%clk 0:00:44]} 37. Kxb4 {[%clk 0:01:44]}  Kb2 {[%clk 0:00:44]} 38. Kc4 {[%clk 0:01:37]}  Kc2 {[%clk 0:00:44]} 39. Nf5 {[%clk 0:01:32]}  Kd2 {[%clk 0:00:36]} 40. Nxg7 {[%clk 0:01:32]}  Ke2 {[%clk 0:00:37]} 41. f4 {[%clk 0:01:32]}  Kf2 {[%clk 0:00:36]} 42. g4 {[%clk 0:01:31]}  Kg3 {[%clk 0:00:36]} 43. Nf5+ {[%clk 0:01:22]}  Kxf4 {[%clk 0:00:29]} 44. Nxh6 {[%clk 0:01:23]}  Kg3 {[%clk 0:00:29]} 45. Kd5 {[%clk 0:01:03]}  Kxh3 {[%clk 0:00:28]} 46. Ke6 {[%clk 0:01:04]}  Ne5 {[%clk 0:00:28]} 47. Kxf6 {[%clk 0:01:01]}  Nxg4+ {[%clk 0:00:28]} 1/2-1/2


[Site "https://www.chess.com"]

[Event "Titled Tuesday Blitz November 01 Late 2022"]
[White "Storey, Charles H"]
[Black "Timmermans, Mark"]
[WhiteFideId "406686"]
[BlackFideId "1026399"]
[WhiteElo "2252"]
[BlackElo "2460"]
[Result "0-1"]
[Round "01"]
[TimeControl "180+1"]
[Date "2022.11.02"]
[WhiteClock "0:00:06"]
[BlackClock "0:00:49"]

1. e4 {[%clk 0:02:57]}  e5 {[%clk 0:02:51]} 2. Nf3 {[%clk 0:02:57]}  Nc6 {[%clk 0:02:49]} 3. Bb5 {[%clk 0:02:56]}  f5 {[%clk 0:02:49]} 4. d3 {[%clk 0:02:55]}  fxe4 {[%clk 0:02:49]} 5. dxe4 {[%clk 0:02:55]}  Nf6 {[%clk 0:02:49]} 6. Nc3 {[%clk 0:02:53]}  Bb4 {[%clk 0:02:48]} 7. Bg5 {[%clk 0:02:39]}  Bxc3+ {[%clk 0:02:49]} 8. bxc3 {[%clk 0:02:39]}  d6 {[%clk 0:02:49]} 9. Bc4 {[%clk 0:02:37]}  Na5 {[%clk 0:02:48]} 10. Bd3 {[%clk 0:02:25]}  O-O {[%clk 0:02:47]} 11. Nh4 {[%clk 0:02:20]}  b6 {[%clk 0:02:42]} 12. O-O {[%clk 0:02:14]}  Qe8 {[%clk 0:02:38]} 13. Nf5 {[%clk 0:02:02]}  Bxf5 {[%clk 0:02:14]} 14. exf5 {[%clk 0:01:58]}  e4 {[%clk 0:02:15]} 15. Be2 {[%clk 0:01:50]}  Qe5 {[%clk 0:02:14]} 16. g4 {[%clk 0:01:23]}  Nd5 {[%clk 0:02:03]} 17. c4 {[%clk 0:01:16]}  Nc3 {[%clk 0:02:01]} 18. Qd2 {[%clk 0:01:09]}  Nxe2+ {[%clk 0:01:55]} 19. Qxe2 {[%clk 0:01:09]}  Rae8 {[%clk 0:01:53]} 20. Bd2 {[%clk 0:01:01]}  g6 {[%clk 0:01:41]} 21. fxg6 {[%clk 0:00:32]}  hxg6 {[%clk 0:01:42]} 22. Bxa5 {[%clk 0:00:25]}  Qxa5 {[%clk 0:01:43]} 23. Qd1 {[%clk 0:00:19]}  Re5 {[%clk 0:01:19]} 24. h3 {[%clk 0:00:19]}  Rf3 {[%clk 0:01:17]} 25. Qd4 {[%clk 0:00:16]}  Rxh3 {[%clk 0:01:12]} 26. Kg2 {[%clk 0:00:16]}  Qc3 {[%clk 0:01:06]} 27. Qxc3 {[%clk 0:00:11]}  Rxc3 {[%clk 0:01:07]} 28. Rh1 {[%clk 0:00:09]}  Rxc2 {[%clk 0:01:07]} 29. Rh6 {[%clk 0:00:09]}  Kg7 {[%clk 0:01:04]} 30. Rah1 {[%clk 0:00:09]}  e3 {[%clk 0:01:04]} 31. Rh7+ {[%clk 0:00:09]}  Kf6 {[%clk 0:01:04]} 32. Kg3 {[%clk 0:00:07]}  e2 {[%clk 0:00:52]} 33. Rh8 {[%clk 0:00:07]}  e1=Q {[%clk 0:00:49]} 34. Rf8+ {[%clk 0:00:06]}  Kg7 {[%clk 0:00:49]} 0-1


[Site "https://www.chess.com"]

[Event "Titled Tuesday Blitz November 01 Late 2022"]
[White "Szente Varga, Fruzsina"]
[Black "Gubajdullin, Alexei"]
[WhiteFideId "712264"]
[BlackFideId "4141202"]
[WhiteElo "1994"]
[BlackElo "2200"]
[Result "1-0"]
[Round "01"]
[TimeControl "180+1"]
[Date "2022.11.02"]
[WhiteClock "0:00:11"]
[BlackClock "0:00:02"]

1. e4 {[%clk 0:03:00]}  c6 {[%clk 0:02:58]} 2. d4 {[%clk 0:02:59]}  d5 {[%clk 0:02:58]} 3. Nc3 {[%clk 0:03:00]}  dxe4 {[%clk 0:02:57]} 4. Nxe4 {[%clk 0:03:01]}  Bf5 {[%clk 0:02:57]} 5. Ng3 {[%clk 0:03:01]}  Bg6 {[%clk 0:02:57]} 6. Bc4 {[%clk 0:03:02]}  e6 {[%clk 0:02:55]} 7. c3 {[%clk 0:03:03]}  Nf6 {[%clk 0:02:53]} 8. N1e2 {[%clk 0:03:03]}  Nd5 {[%clk 0:02:52]} 9. O-O {[%clk 0:03:02]}  Bd6 {[%clk 0:02:51]} 10. f4 {[%clk 0:03:01]}  O-O {[%clk 0:02:50]} 11. f5 {[%clk 0:02:59]}  exf5 {[%clk 0:02:50]} 12. Nxf5 {[%clk 0:02:59]}  Bc7 {[%clk 0:02:48]} 13. Neg3 {[%clk 0:02:54]}  Nd7 {[%clk 0:02:42]} 14. Bxd5 {[%clk 0:02:11]}  cxd5 {[%clk 0:02:40]} 15. Qf3 {[%clk 0:02:10]}  Nb6 {[%clk 0:02:33]} 16. Nh5 {[%clk 0:01:58]}  Bxf5 {[%clk 0:02:17]} 17. Qxf5 {[%clk 0:01:57]}  Qh4 {[%clk 0:02:16]} 18. Bf4 {[%clk 0:01:21]}  Bxf4 {[%clk 0:02:13]} 19. Rxf4 {[%clk 0:01:20]}  Qe7 {[%clk 0:02:09]} 20. Rg4 {[%clk 0:00:31]}  g6 {[%clk 0:02:03]} 21. Nf6+ {[%clk 0:00:31]}  Kh8 {[%clk 0:01:42]} 22. Qg5 {[%clk 0:00:30]}  Nd7 {[%clk 0:01:24]} 23. Nxh7 {[%clk 0:00:17]}  Rfe8 {[%clk 0:01:14]} 24. Rh4 {[%clk 0:00:15]}  Qxg5 {[%clk 0:01:04]} 25. Nxg5+ {[%clk 0:00:16]}  Kg7 {[%clk 0:01:03]} 26. Rf1 {[%clk 0:00:17]}  Nf6 {[%clk 0:01:02]} 27. Rhf4 {[%clk 0:00:17]}  Nh5 {[%clk 0:00:39]} 28. Rxf7+ {[%clk 0:00:17]}  Kg8 {[%clk 0:00:38]} 29. Rxb7 {[%clk 0:00:16]}  Re2 {[%clk 0:00:35]} 30. Rff7 {[%clk 0:00:15]}  Rf8 {[%clk 0:00:28]} 31. Rxf8+ {[%clk 0:00:15]}  Kxf8 {[%clk 0:00:28]} 32. Nf3 {[%clk 0:00:14]}  a5 {[%clk 0:00:27]} 33. Ne5 {[%clk 0:00:15]}  Nf4 {[%clk 0:00:26]} 34. g3 {[%clk 0:00:14]}  Nh3+ {[%clk 0:00:25]} 35. Kf1 {[%clk 0:00:14]}  Rf2+ {[%clk 0:00:18]} 36. Ke1 {[%clk 0:00:14]}  g5 {[%clk 0:00:18]} 37. Rb5 {[%clk 0:00:13]}  Rxh2 {[%clk 0:00:16]} 38. Nd3 {[%clk 0:00:12]}  Rg2 {[%clk 0:00:15]} 39. Rxd5 {[%clk 0:00:12]}  Rxg3 {[%clk 0:00:14]} 40. Ke2 {[%clk 0:00:12]}  Rg1 {[%clk 0:00:14]} 41. Rxa5 {[%clk 0:00:11]}  g4 {[%clk 0:00:13]} 42. Rf5+ {[%clk 0:00:12]}  Ke7 {[%clk 0:00:12]} 43. Nf4 {[%clk 0:00:12]}  Rb1 {[%clk 0:00:08]} 44. b4 {[%clk 0:00:12]}  Ra1 {[%clk 0:00:05]} 45. Kd3 {[%clk 0:00:11]}  Nf2+ {[%clk 0:00:04]} 46. Kc4 {[%clk 0:00:11]}  g3 {[%clk 0:00:04]} 47. Rg5 {[%clk 0:00:11]}  Nh1 {[%clk 0:00:02]} 48. Nh5 {[%clk 0:00:11]} 1-0


[Site "https://www.chess.com"]

[Event "Titled Tuesday Blitz November 01 Late 2022"]
[White "Szpar, Milosz"]
[Black "Prohorov, Olexandr"]
[WhiteFideId "1184989"]
[BlackFideId "14105578"]
[WhiteElo "2422"]
[BlackElo "1993"]
[Result "1-0"]
[Round "01"]
[TimeControl "180+1"]
[Date "2022.11.02"]
[WhiteClock "0:01:10"]
[BlackClock "0:00:01"]

1. e4 {[%clk 0:02:57]}  c5 {[%clk 0:02:53]} 2. Nf3 {[%clk 0:02:51]}  e6 {[%clk 0:02:51]} 3. d4 {[%clk 0:02:46]}  cxd4 {[%clk 0:02:48]} 4. Nxd4 {[%clk 0:02:46]}  Qb6 {[%clk 0:02:48]} 5. Nb3 {[%clk 0:02:19]}  Nf6 {[%clk 0:02:45]} 6. Bd3 {[%clk 0:02:17]}  Nc6 {[%clk 0:02:44]} 7. O-O {[%clk 0:02:15]}  Be7 {[%clk 0:02:42]} 8. c4 {[%clk 0:02:14]}  d6 {[%clk 0:02:37]} 9. Nc3 {[%clk 0:02:13]}  a6 {[%clk 0:02:36]} 10. Be3 {[%clk 0:02:13]}  Qc7 {[%clk 0:02:36]} 11. f4 {[%clk 0:02:13]}  h5 {[%clk 0:02:33]} 12. Kh1 {[%clk 0:02:06]}  h4 {[%clk 0:02:09]} 13. Qf3 {[%clk 0:02:04]}  b6 {[%clk 0:02:01]} 14. e5 {[%clk 0:01:57]}  Nd7 {[%clk 0:01:44]} 15. exd6 {[%clk 0:01:56]}  Bxd6 {[%clk 0:01:43]} 16. Ne4 {[%clk 0:01:52]}  Be7 {[%clk 0:01:41]} 17. c5 {[%clk 0:01:50]}  b5 {[%clk 0:01:19]} 18. Qg4 {[%clk 0:01:44]}  g6 {[%clk 0:01:08]} 19. Rac1 {[%clk 0:01:43]}  Bb7 {[%clk 0:01:04]} 20. Rfd1 {[%clk 0:01:42]}  h3 {[%clk 0:00:59]} 21. Nd6+ {[%clk 0:01:34]}  Bxd6 {[%clk 0:00:57]} 22. cxd6 {[%clk 0:01:34]}  hxg2+ {[%clk 0:00:55]} 23. Kg1 {[%clk 0:01:32]}  Qd8 {[%clk 0:00:52]} 24. Nc5 {[%clk 0:01:28]}  Nxc5 {[%clk 0:00:47]} 25. Bxc5 {[%clk 0:01:28]}  Qd7 {[%clk 0:00:27]} 26. Qg5 {[%clk 0:01:24]}  Rh5 {[%clk 0:00:19]} 27. Qf6 {[%clk 0:01:24]}  Kf8 {[%clk 0:00:10]} 28. Bxg6 {[%clk 0:01:10]}  Rh6 {[%clk 0:00:03]} 29. f5 {[%clk 0:01:10]}  exf5 {[%clk 0:00:02]} 30. Qxf5 {[%clk 0:01:11]}  Qxf5 {[%clk 0:00:02]} 31. Bxf5 {[%clk 0:01:11]}  Rf6 {[%clk 0:00:01]} 32. Be4 {[%clk 0:01:10]} 1-0


[Site "https://www.chess.com"]

[Event "Titled Tuesday Blitz November 01 Late 2022"]
[White "Tanenbaum, Zachary"]
[Black "Garagulya, Konstantin"]
[WhiteFideId "2060850"]
[BlackFideId "4128931"]
[WhiteElo "2175"]
[BlackElo "2329"]
[Result "0-1"]
[Round "01"]
[TimeControl "180+1"]
[Date "2022.11.02"]
[WhiteClock "0:00:26"]
[BlackClock "0:00:30"]

1. e4 {[%clk 0:02:43]}  c5 {[%clk 0:02:58]} 2. Nf3 {[%clk 0:02:43]}  a6 {[%clk 0:02:59]} 3. Nc3 {[%clk 0:02:42]}  b5 {[%clk 0:02:58]} 4. d4 {[%clk 0:02:41]}  cxd4 {[%clk 0:02:59]} 5. Nxd4 {[%clk 0:02:41]}  Bb7 {[%clk 0:03:00]} 6. Bd3 {[%clk 0:02:41]}  g6 {[%clk 0:03:00]} 7. O-O {[%clk 0:02:41]}  Bg7 {[%clk 0:03:01]} 8. Be3 {[%clk 0:02:40]}  d6 {[%clk 0:03:02]} 9. f4 {[%clk 0:02:40]}  Nd7 {[%clk 0:03:02]} 10. Qd2 {[%clk 0:02:30]}  Ngf6 {[%clk 0:03:01]} 11. Rae1 {[%clk 0:02:30]}  b4 {[%clk 0:02:55]} 12. Nce2 {[%clk 0:02:20]}  a5 {[%clk 0:02:23]} 13. Ng3 {[%clk 0:02:17]}  O-O {[%clk 0:02:20]} 14. f5 {[%clk 0:02:16]}  Ng4 {[%clk 0:02:17]} 15. c3 {[%clk 0:01:57]}  bxc3 {[%clk 0:02:09]} 16. bxc3 {[%clk 0:01:58]}  Nxe3 {[%clk 0:02:05]} 17. Qxe3 {[%clk 0:01:59]}  Rc8 {[%clk 0:02:04]} 18. Rb1 {[%clk 0:01:56]}  Ba8 {[%clk 0:02:02]} 19. Ba6 {[%clk 0:01:52]}  Rc5 {[%clk 0:01:55]} 20. Nge2 {[%clk 0:01:23]}  Qc7 {[%clk 0:01:50]} 21. h4 {[%clk 0:01:14]}  Nf6 {[%clk 0:01:22]} 22. Bd3 {[%clk 0:01:10]}  Ng4 {[%clk 0:01:12]} 23. Qg3 {[%clk 0:01:08]}  Rxc3 {[%clk 0:00:54]} 24. Nb5 {[%clk 0:00:31]}  Qc5+ {[%clk 0:00:50]} 25. Kh1 {[%clk 0:00:31]}  Rxd3 {[%clk 0:00:39]} 26. Qxd3 {[%clk 0:00:30]}  Nf2+ {[%clk 0:00:39]} 27. Rxf2 {[%clk 0:00:31]}  Qxf2 {[%clk 0:00:39]} 28. Nc7 {[%clk 0:00:19]}  Qxh4+ {[%clk 0:00:38]} 29. Kg1 {[%clk 0:00:19]}  Bxe4 {[%clk 0:00:38]} 30. Qc4 {[%clk 0:00:20]}  Bf6 {[%clk 0:00:29]} 31. Rf1 {[%clk 0:00:18]}  Bxf5 {[%clk 0:00:27]} 32. Qc6 {[%clk 0:00:15]}  Bd3 {[%clk 0:00:24]} 33. Rf4 {[%clk 0:00:14]}  Qe1+ {[%clk 0:00:23]} 34. Kh2 {[%clk 0:00:13]}  Qxe2 {[%clk 0:00:21]} 35. Nd5 {[%clk 0:00:12]}  Qh5+ {[%clk 0:00:20]} 36. Kg1 {[%clk 0:00:12]}  Qd1+ {[%clk 0:00:19]} 37. Kf2 {[%clk 0:00:11]}  Qd2+ {[%clk 0:00:18]} 38. Kg1 {[%clk 0:00:10]}  Bg5 {[%clk 0:00:17]} 39. Rf3 {[%clk 0:00:08]}  Be4 {[%clk 0:00:17]} 40. Nxe7+ {[%clk 0:00:08]}  Bxe7 {[%clk 0:00:15]} 41. Qxe4 {[%clk 0:00:09]}  Bg5 {[%clk 0:00:15]} 42. Kh2 {[%clk 0:00:09]}  d5 {[%clk 0:00:15]} 43. Qe5 {[%clk 0:00:09]}  h6 {[%clk 0:00:14]} 44. a4 {[%clk 0:00:09]}  Qb4 {[%clk 0:00:12]} 45. Kh3 {[%clk 0:00:09]}  Qxa4 {[%clk 0:00:12]} 46. Kh2 {[%clk 0:00:09]}  Qe4 {[%clk 0:00:12]} 47. Qc7 {[%clk 0:00:08]}  d4 {[%clk 0:00:11]} 48. Kg1 {[%clk 0:00:08]}  d3 {[%clk 0:00:12]} 49. Qd7 {[%clk 0:00:08]}  a4 {[%clk 0:00:11]} 50. Rxd3 {[%clk 0:00:07]}  Qe1+ {[%clk 0:00:10]} 51. Kh2 {[%clk 0:00:07]}  Qh4+ {[%clk 0:00:10]} 52. Rh3 {[%clk 0:00:06]}  Qf4+ {[%clk 0:00:09]} 53. Kg1 {[%clk 0:00:06]}  a3 {[%clk 0:00:08]} 54. Rxa3 {[%clk 0:00:06]}  Qc1+ {[%clk 0:00:08]} 55. Kh2 {[%clk 0:00:06]}  Qxa3 {[%clk 0:00:09]} 56. g4 {[%clk 0:00:06]}  Qf3 {[%clk 0:00:08]} 57. Qd4 {[%clk 0:00:05]}  Qf4+ {[%clk 0:00:09]} 58. Qxf4 {[%clk 0:00:04]}  Bxf4+ {[%clk 0:00:10]} 59. Kh3 {[%clk 0:00:05]}  Bg5 {[%clk 0:00:11]} 60. Kg3 {[%clk 0:00:05]}  Kg7 {[%clk 0:00:12]} 61. Kf3 {[%clk 0:00:06]}  Re8 {[%clk 0:00:13]} 62. Kf2 {[%clk 0:00:06]}  Re6 {[%clk 0:00:14]} 63. Kg2 {[%clk 0:00:07]}  Rf6 {[%clk 0:00:15]} 64. Kg3 {[%clk 0:00:07]}  Rf4 {[%clk 0:00:15]} 65. Kg2 {[%clk 0:00:08]}  Rd4 {[%clk 0:00:16]} 66. Kh3 {[%clk 0:00:09]}  Rc4 {[%clk 0:00:17]} 67. Kh2 {[%clk 0:00:10]}  Rxg4 {[%clk 0:00:17]} 68. Kh3 {[%clk 0:00:11]}  Rf4 {[%clk 0:00:18]} 69. Kh2 {[%clk 0:00:12]}  Kf6 {[%clk 0:00:19]} 70. Kh3 {[%clk 0:00:13]}  Kf5 {[%clk 0:00:20]} 71. Kh2 {[%clk 0:00:13]}  h5 {[%clk 0:00:20]} 72. Kh3 {[%clk 0:00:14]}  Bf6 {[%clk 0:00:21]} 73. Kh2 {[%clk 0:00:15]}  Be5 {[%clk 0:00:22]} 74. Kg2 {[%clk 0:00:16]}  g5 {[%clk 0:00:23]} 75. Kh3 {[%clk 0:00:17]}  g4+ {[%clk 0:00:23]} 76. Kg2 {[%clk 0:00:18]}  h4 {[%clk 0:00:23]} 77. Kh1 {[%clk 0:00:19]}  Rc4 {[%clk 0:00:24]} 78. Kg2 {[%clk 0:00:20]}  Bf6 {[%clk 0:00:24]} 79. Kh1 {[%clk 0:00:20]}  Bg5 {[%clk 0:00:25]} 80. Kg1 {[%clk 0:00:21]}  Kg6 {[%clk 0:00:26]} 81. Kg2 {[%clk 0:00:22]}  f5 {[%clk 0:00:26]} 82. Kh1 {[%clk 0:00:22]}  f4 {[%clk 0:00:27]} 83. Kg2 {[%clk 0:00:23]}  Kf5 {[%clk 0:00:28]} 84. Kf1 {[%clk 0:00:24]}  Rc2 {[%clk 0:00:28]} 85. Ke1 {[%clk 0:00:25]}  h3 {[%clk 0:00:28]} 86. Kd1 {[%clk 0:00:26]}  Ra2 {[%clk 0:00:29]} 87. Kc1 {[%clk 0:00:26]}  h2 {[%clk 0:00:29]} 88. Kb1 {[%clk 0:00:27]}  Rg2 {[%clk 0:00:29]} 89. Kc1 {[%clk 0:00:26]}  h1=Q# {[%clk 0:00:30]} 0-1


[Site "https://www.chess.com"]